[Event "Live Chess"]
[Site "Chess.com"]
[Date "2023.09.16"]
[Round "-"]
[White "MAndrade_Marques"]
[Black "L_lawliet_03"]
[Result "0-1"]
[WhiteElo "1644"]
[BlackElo "1537"]
[TimeControl "900+5"]
[EndTime "16:14:22 PDT"]
[Termination "L_lawliet_03 venceu por desistência"]

1. c4 {[%clk 0:15:02.4]} 1... Nf6 {[%clk 0:15:01.6]} 2. Nc3 {[%clk 0:15:06.5]}
2... d5 {[%clk 0:15:00.6]} 3. cxd5 {[%clk 0:15:01.6]} 3... Nxd5 {[%clk
0:15:04.2]} 4. g3 {[%clk 0:15:05.4]} 4... g6 {[%clk 0:15:05.8]} 5. Bg2 {[%clk
0:15:08.5]} 5... Nf6 {[%clk 0:15:03.9]} 6. d4 {[%clk 0:15:05.6]} 6... Bg7 {[%clk
0:15:03.7]} 7. e4 {[%clk 0:15:03]} 7... O-O {[%clk 0:14:52]} 8. Nge2 {[%clk
0:15:00.2]} 8... Bg4 {[%clk 0:14:31.4]} 9. e5 {[%clk 0:15:00.2]} 9... Nfd7
{[%clk 0:14:04.6]} 10. Bxb7 {[%clk 0:15:03.2]} 10... c6 {[%clk 0:13:46.8]} 11.
Bxa8 {[%clk 0:15:05.7]} 11... Bf3 {[%clk 0:13:47.4]} 12. O-O {[%clk 0:15:06.8]}
12... Nb6 {[%clk 0:13:41.6]} 13. Bxc6 {[%clk 0:15:07.9]} 13... Nxc6 {[%clk
0:13:44.9]} 14. Be3 {[%clk 0:14:59.4]} 14... Nc4 {[%clk 0:13:42]} 15. Qa4 {[%clk
0:14:27.3]} 15... N6a5 {[%clk 0:13:00]} 16. b4 {[%clk 0:14:21.6]} 16... Qc8
{[%clk 0:12:52.9]} 17. bxa5 {[%clk 0:14:02.5]} 17... h6 {[%clk 0:12:41.7]} 18.
Rfc1 {[%clk 0:08:26]} 18... g5 {[%clk 0:11:03.3]} 19. Qd1 {[%clk 0:08:27.4]}
19... Nxe3 {[%clk 0:09:10.1]} 20. fxe3 {[%clk 0:08:30.1]} 20... h5 {[%clk
0:09:12.8]} 21. Nd5 {[%clk 0:08:28.4]} 21... Qe6 {[%clk 0:08:54.4]} 22. Nc7
{[%clk 0:07:53.5]} 22... Qg4 {[%clk 0:08:52]} 23. Rc2 {[%clk 0:07:12.2]} 23...
h4 {[%clk 0:07:52.7]} 24. Qf1 {[%clk 0:06:51.1]} 24... Qe4 {[%clk 0:07:34.4]}
25. Rac1 {[%clk 0:06:39.4]} 25... g4 {[%clk 0:06:41.2]} 26. gxh4 {[%clk
0:06:36.6]} 26... Bh6 {[%clk 0:06:39.1]} 27. Ng3 {[%clk 0:06:37.4]} 27... Bxe3+
{[%clk 0:06:39.1]} 28. Qf2 {[%clk 0:06:29.8]} 28... Bxf2+ {[%clk 0:06:34.3]} 29.
Kxf2 {[%clk 0:06:34.7]} 29... Qxd4+ {[%clk 0:06:35.7]} 30. Kf1 {[%clk
0:06:14.1]} 30... Qd3+ {[%clk 0:06:25.1]} 31. Kf2 {[%clk 0:06:04.7]} 31... Qd4+
{[%clk 0:05:56.1]} 32. Kf1 {[%clk 0:06:06.5]} 32... Qxe5 {[%clk 0:05:53.7]} 33.
Re1 {[%clk 0:05:36.6]} 33... Qd6 {[%clk 0:05:24.3]} 34. Nf5 {[%clk 0:05:02.6]}
34... Qd3+ {[%clk 0:05:11.5]} 35. Kg1 {[%clk 0:05:01.1]} 35... Qxc2 {[%clk
0:04:25.7]} 0-1

[Event "Live Chess"]
[Site "Chess.com"]
[Date "2023.09.16"]
[Round "-"]
[White "MatheusMPD"]
[Black "isiskrakatoa"]
[Result "1-0"]
[WhiteElo "1609"]
[BlackElo "586"]
[TimeControl "900+5"]
[EndTime "16:15:13 PDT"]
[Termination "MatheusMPD venceu por xeque-mate"]

1. d4 {[%clk 0:15:01.7]} 1... Nc6 {[%clk 0:14:53.9]} 2. c4 {[%clk 0:15:01.4]}
2... e5 {[%clk 0:14:51.6]} 3. e3 {[%clk 0:15:00.3]} 3... exd4 {[%clk 0:14:54.8]}
4. exd4 {[%clk 0:15:04.3]} 4... d5 {[%clk 0:14:55]} 5. Nf3 {[%clk 0:15:03.4]}
5... dxc4 {[%clk 0:14:58.2]} 6. Bxc4 {[%clk 0:15:07.4]} 6... Be6 {[%clk
0:14:58]} 7. Bxe6 {[%clk 0:15:07.3]} 7... fxe6 {[%clk 0:15:01.1]} 8. O-O {[%clk
0:15:10.6]} 8... e5 {[%clk 0:14:57.7]} 9. Re1 {[%clk 0:15:05.1]} 9... Be7 {[%clk
0:14:59.7]} 10. Nxe5 {[%clk 0:14:39.3]} 10... Nxe5 {[%clk 0:14:56.6]} 11. Rxe5
{[%clk 0:14:20.5]} 11... Nf6 {[%clk 0:14:54.1]} 12. Bg5 {[%clk 0:14:08.6]} 12...
Qd6 {[%clk 0:14:44]} 13. Bxf6 {[%clk 0:12:36.1]} 13... Qxf6 {[%clk 0:13:44.5]}
14. Nc3 {[%clk 0:11:36.7]} 14... O-O {[%clk 0:13:46]} 15. Nd5 {[%clk 0:11:33]}
15... Qd6 {[%clk 0:13:39.6]} 16. Nxe7+ {[%clk 0:11:33.5]} 16... Kh8 {[%clk
0:13:37.6]} 17. Qh5 {[%clk 0:10:40.5]} 17... Qxd4 {[%clk 0:13:33.5]} 18. Qxh7+
{[%clk 0:10:00.1]} 18... Kxh7 {[%clk 0:13:35.7]} 19. Rh5# {[%clk 0:10:04.8]} 1-0

[Event "Live Chess"]
[Site "Chess.com"]
[Date "2023.09.16"]
[Round "-"]
[White "ThiagoFantim"]
[Black "marqueslua97"]
[Result "1/2-1/2"]
[WhiteElo "1665"]
[BlackElo "1872"]
[TimeControl "900+5"]
[EndTime "16:18:05 PDT"]
[Termination "Partida empatada - material insuficiente"]

1. e4 {[%clk 0:15:03]} 1... c5 {[%clk 0:15:01.2]} 2. f4 {[%clk 0:15:00.7]} 2...
Nc6 {[%clk 0:15:03]} 3. Nf3 {[%clk 0:15:03.5]} 3... d6 {[%clk 0:15:01.8]} 4. c3
{[%clk 0:15:07.3]} 4... e5 {[%clk 0:14:55.5]} 5. fxe5 {[%clk 0:15:08.9]} 5...
dxe5 {[%clk 0:14:54.3]} 6. Bb5 {[%clk 0:15:13]} 6... Nf6 {[%clk 0:14:18]} 7.
Bxc6+ {[%clk 0:15:10.4]} 7... bxc6 {[%clk 0:14:21.9]} 8. d3 {[%clk 0:15:14.2]}
8... Bd6 {[%clk 0:14:18.1]} 9. Bg5 {[%clk 0:15:17.5]} 9... O-O {[%clk
0:14:17.1]} 10. O-O {[%clk 0:15:20.1]} 10... h6 {[%clk 0:14:17.7]} 11. Bh4
{[%clk 0:15:23.2]} 11... c4 {[%clk 0:14:15]} 12. Ne1 {[%clk 0:14:57.8]} 12...
Qb6+ {[%clk 0:13:59.7]} 13. Kh1 {[%clk 0:14:58.2]} 13... Qxb2 {[%clk 0:14:00.8]}
14. Nd2 {[%clk 0:15:00]} 14... Ng4 {[%clk 0:13:31.6]} 15. Nxc4 {[%clk
0:14:48.8]} 15... Qxc3 {[%clk 0:13:16.8]} 16. h3 {[%clk 0:14:27.6]} 16... Bc5
{[%clk 0:11:45.9]} 17. hxg4 {[%clk 0:14:19.7]} 17... Bxg4 {[%clk 0:11:35.8]} 18.
Qc1 {[%clk 0:13:35.8]} 18... Qxc1 {[%clk 0:11:20.8]} 19. Rxc1 {[%clk 0:13:35.8]}
19... Be2 {[%clk 0:11:24.6]} 20. Rf5 {[%clk 0:12:19.5]} 20... Bd4 {[%clk
0:11:09]} 21. Bf2 {[%clk 0:11:19.6]} 21... Bg4 {[%clk 0:10:44.1]} 22. Bxd4
{[%clk 0:11:03.4]} 22... Bxf5 {[%clk 0:10:43.9]} 23. exf5 {[%clk 0:11:07.5]}
23... exd4 {[%clk 0:10:44.5]} 24. Nf3 {[%clk 0:11:10.7]} 24... Rac8 {[%clk
0:10:11.8]} 25. Kh2 {[%clk 0:10:52.3]} 25... g6 {[%clk 0:10:12.5]} 26. f6 {[%clk
0:10:53.5]} 26... c5 {[%clk 0:10:02.2]} 27. Nfe5 {[%clk 0:10:46.6]} 27... g5
{[%clk 0:09:21.3]} 28. Na5 {[%clk 0:10:41.1]} 28... Rfe8 {[%clk 0:09:05.5]} 29.
Nd7 {[%clk 0:10:32.6]} 29... Re2 {[%clk 0:08:44]} 30. Nb7 {[%clk 0:10:19.3]}
30... Rxa2 {[%clk 0:08:30.7]} 31. Nbxc5 {[%clk 0:10:17.4]} 31... a5 {[%clk
0:07:04.5]} 32. Rc4 {[%clk 0:10:17.6]} 32... Rc7 {[%clk 0:06:48.6]} 33. Rxd4
{[%clk 0:10:19.2]} 33... a4 {[%clk 0:06:43.1]} 34. Nxa4 {[%clk 0:10:20]} 34...
Rxa4 {[%clk 0:06:30.2]} 35. Rxa4 {[%clk 0:10:23.9]} 35... Rxd7 {[%clk
0:06:34.2]} 36. d4 {[%clk 0:10:27.3]} 36... Kh7 {[%clk 0:06:37.2]} 37. Kg3
{[%clk 0:10:31.5]} 37... Kg6 {[%clk 0:06:41.5]} 38. Kf3 {[%clk 0:10:35.8]} 38...
Kxf6 {[%clk 0:06:45.4]} 39. Ke4 {[%clk 0:10:40.1]} 39... Ke6 {[%clk 0:06:45.3]}
40. Ra6+ {[%clk 0:10:43.8]} 40... Rd6 {[%clk 0:06:42]} 41. Ra8 {[%clk
0:10:40.8]} 41... f5+ {[%clk 0:06:43]} 42. Ke3 {[%clk 0:10:44.3]} 42... Kd5
{[%clk 0:06:44.4]} 43. Ra5+ {[%clk 0:10:46.5]} 43... Kc4 {[%clk 0:06:47.9]} 44.
Rxf5 {[%clk 0:10:47.8]} 44... Rxd4 {[%clk 0:06:52]} 45. Rf6 {[%clk 0:10:52]}
45... Rd3+ {[%clk 0:06:40.5]} 46. Kf2 {[%clk 0:10:47]} 46... h5 {[%clk 0:06:32]}
47. Rf5 {[%clk 0:10:48.1]} 47... Rd5 {[%clk 0:06:31.7]} 48. Rf7 {[%clk 0:10:38]}
48... Kd4 {[%clk 0:06:31.6]} 49. Kg3 {[%clk 0:10:36.1]} 49... Ke4 {[%clk
0:06:29]} 50. Rh7 {[%clk 0:10:33.1]} 50... Rd3+ {[%clk 0:06:25.2]} 51. Kh2
{[%clk 0:10:35.7]} 51... h4 {[%clk 0:06:19.2]} 52. Rg7 {[%clk 0:10:36.6]} 52...
Kf4 {[%clk 0:06:18]} 53. Rf7+ {[%clk 0:10:38.7]} 53... Kg4 {[%clk 0:06:21.5]}
54. Re7 {[%clk 0:10:40.7]} 54... Kf5 {[%clk 0:06:18]} 55. Rf7+ {[%clk
0:10:42.1]} 55... Kg6 {[%clk 0:06:16.9]} 56. Re7 {[%clk 0:10:42.7]} 56... Rg3
{[%clk 0:06:15]} 57. Re4 {[%clk 0:10:41.8]} 57... Kf5 {[%clk 0:06:14.7]} 58. Rc4
{[%clk 0:10:42.9]} 58... g4 {[%clk 0:06:06.8]} 59. Rc5+ {[%clk 0:10:44.3]} 59...
Ke4 {[%clk 0:06:08.8]} 60. Rc4+ {[%clk 0:10:47.5]} 60... Kd3 {[%clk 0:06:09.6]}
61. Rf4 {[%clk 0:10:51.2]} 61... Ke3 {[%clk 0:06:06.7]} 62. Rf8 {[%clk 0:10:54]}
62... Ke4 {[%clk 0:06:04.5]} 63. Rh8 {[%clk 0:10:57.9]} 63... Ke3 {[%clk
0:05:54.2]} 64. Re8+ {[%clk 0:10:50.1]} 64... Kf2 {[%clk 0:05:57.3]} 65. Rf8+
{[%clk 0:10:54]} 65... Ke2 {[%clk 0:06:01.4]} 66. Re8+ {[%clk 0:10:58.4]} 66...
Re3 {[%clk 0:06:03.4]} 67. Rh8 {[%clk 0:11:02.4]} 67... Kf2 {[%clk 0:04:31.7]}
68. Rf8+ {[%clk 0:10:53]} 68... Ke2 {[%clk 0:04:13.3]} 69. Rh8 {[%clk 0:10:56]}
69... h3 {[%clk 0:03:40]} 70. gxh3 {[%clk 0:10:51.8]} 70... Rxh3+ {[%clk
0:03:28.9]} 71. Rxh3 {[%clk 0:10:54.2]} 71... gxh3 {[%clk 0:03:33.8]} 72. Kxh3
{[%clk 0:10:58.5]} 1/2-1/2

[Event "Live Chess"]
[Site "Chess.com"]
[Date "2023.09.16"]
[Round "-"]
[White "MAndrade_Marques"]
[Black "isiskrakatoa"]
[Result "1-0"]
[WhiteElo "1644"]
[BlackElo "586"]
[TimeControl "900+5"]
[EndTime "16:21:35 PDT"]
[Termination "MAndrade_Marques venceu por xeque-mate"]

1. c4 {[%clk 0:15:03.4]} 1... e5 {[%clk 0:15:00.8]} 2. Nc3 {[%clk 0:15:07.3]}
2... d5 {[%clk 0:15:01.2]} 3. cxd5 {[%clk 0:15:10.3]} 3... Bb4 {[%clk
0:14:59.1]} 4. e4 {[%clk 0:15:11.5]} 4... Bxc3 {[%clk 0:15:01.6]} 5. bxc3 {[%clk
0:15:14.3]} 5... c6 {[%clk 0:15:03.4]} 6. dxc6 {[%clk 0:15:05.9]} 6... Nxc6
{[%clk 0:14:59.7]} 7. Bb5 {[%clk 0:14:58.1]} 7... a6 {[%clk 0:15:01.9]} 8. Qa4
{[%clk 0:14:49.4]} 8... Bd7 {[%clk 0:15:00.7]} 9. Bxc6 {[%clk 0:14:42.7]} 9...
Bxc6 {[%clk 0:15:01.3]} 10. Qc2 {[%clk 0:14:20.1]} 10... Nf6 {[%clk 0:14:56.8]}
11. d3 {[%clk 0:14:13]} 11... O-O {[%clk 0:14:40.2]} 12. Nf3 {[%clk 0:14:14.7]}
12... Re8 {[%clk 0:14:40.4]} 13. O-O {[%clk 0:14:15]} 13... a5 {[%clk
0:14:25.6]} 14. Bg5 {[%clk 0:14:14.3]} 14... a4 {[%clk 0:14:15.2]} 15. Rfe1
{[%clk 0:13:43.4]} 15... a3 {[%clk 0:14:13.6]} 16. d4 {[%clk 0:13:41.3]} 16...
exd4 {[%clk 0:14:14.9]} 17. cxd4 {[%clk 0:13:36.5]} 17... Bxe4 {[%clk
0:14:12.8]} 18. Rxe4 {[%clk 0:13:36.9]} 18... Nxe4 {[%clk 0:14:15]} 19. Bxd8
{[%clk 0:13:40.1]} 19... Rexd8 {[%clk 0:14:08.8]} 20. Qxe4 {[%clk 0:13:42.9]}
20... Re8 {[%clk 0:14:10.2]} 21. Qxb7 {[%clk 0:13:45.5]} 21... Rad8 {[%clk
0:14:04.7]} 22. Ng5 {[%clk 0:13:34.9]} 22... g6 {[%clk 0:14:07.4]} 23. Qxf7+
{[%clk 0:13:34.4]} 23... Kh8 {[%clk 0:14:08.6]} 24. Qxh7# {[%clk 0:13:39.3]} 1-0

[Event "Live Chess"]
[Site "Chess.com"]
[Date "2023.09.16"]
[Round "-"]
[White "nicolascristiano"]
[Black "ThgDomingues"]
[Result "1-0"]
[WhiteElo "1557"]
[BlackElo "1475"]
[TimeControl "900+5"]
[EndTime "16:22:10 PDT"]
[Termination "nicolascristiano venceu por desistência"]

1. d4 {[%clk 0:14:57.6]} 1... g6 {[%clk 0:15:01.2]} 2. Nf3 {[%clk 0:14:58.9]}
2... Bg7 {[%clk 0:15:05.4]} 3. c3 {[%clk 0:14:59.2]} 3... d6 {[%clk 0:15:09.7]}
4. Bf4 {[%clk 0:14:59]} 4... Nf6 {[%clk 0:15:13.6]} 5. Nbd2 {[%clk 0:15:01.9]}
5... O-O {[%clk 0:15:17.6]} 6. e4 {[%clk 0:15:03.2]} 6... Nfd7 {[%clk
0:15:12.3]} 7. h4 {[%clk 0:15:04.2]} 7... Nc6 {[%clk 0:15:14.7]} 8. h5 {[%clk
0:15:07.8]} 8... e5 {[%clk 0:15:13.2]} 9. dxe5 {[%clk 0:15:02.9]} 9... dxe5
{[%clk 0:15:18.1]} 10. Be3 {[%clk 0:15:03.9]} 10... Nf6 {[%clk 0:12:57.9]} 11.
hxg6 {[%clk 0:15:05.3]} 11... fxg6 {[%clk 0:12:55.7]} 12. Qb3+ {[%clk 0:14:37]}
12... Kh8 {[%clk 0:12:25.5]} 13. Bg5 {[%clk 0:14:32.8]} 13... Rb8 {[%clk
0:12:10.4]} 14. O-O-O {[%clk 0:14:36.1]} 14... Qe8 {[%clk 0:11:14.9]} 15. Bb5
{[%clk 0:14:21.1]} 15... Be6 {[%clk 0:11:00.6]} 16. Qa4 {[%clk 0:13:48.1]} 16...
a6 {[%clk 0:10:03.7]} 17. Bxc6 {[%clk 0:13:50.6]} 17... Qxc6 {[%clk 0:09:52]}
18. Qxc6 {[%clk 0:13:53.6]} 18... bxc6 {[%clk 0:09:55.7]} 19. Nxe5 {[%clk
0:13:57.9]} 19... Nxe4 {[%clk 0:09:21.8]} 20. Nxg6+ {[%clk 0:13:48.3]} 20... Kg8
{[%clk 0:09:11.5]} 21. Nxf8 {[%clk 0:13:50.9]} 21... Nxg5 {[%clk 0:08:22.7]} 22.
Nxe6 {[%clk 0:13:48.8]} 22... Nxe6 {[%clk 0:08:23.8]} 23. Ne4 {[%clk 0:13:23.7]}
23... Nf4 {[%clk 0:08:22.9]} 24. g3 {[%clk 0:13:19.6]} 24... Ne2+ {[%clk
0:07:14.5]} 25. Kc2 {[%clk 0:13:21]} 1-0

[Event "Live Chess"]
[Site "Chess.com"]
[Date "2023.09.16"]
[Round "-"]
[White "marqueslua97"]
[Black "MAndrade_Marques"]
[Result "1-0"]
[WhiteElo "1882"]
[BlackElo "1640"]
[TimeControl "900+5"]
[EndTime "16:27:56 PDT"]
[Termination "marqueslua97 venceu por desistência"]

1. e4 {[%clk 0:15:00.5]} 1... e5 {[%clk 0:15:03.9]} 2. Nf3 {[%clk 0:15:04.4]}
2... Nc6 {[%clk 0:15:07.8]} 3. Bc4 {[%clk 0:15:08.2]} 3... Bc5 {[%clk
0:15:11.5]} 4. O-O {[%clk 0:15:12.5]} 4... d6 {[%clk 0:15:15.3]} 5. d3 {[%clk
0:15:14.8]} 5... Nf6 {[%clk 0:15:19.1]} 6. Nbd2 {[%clk 0:15:17.9]} 6... O-O
{[%clk 0:15:22.6]} 7. Re1 {[%clk 0:15:21.8]} 7... h6 {[%clk 0:15:26.2]} 8. Nf1
{[%clk 0:15:25.8]} 8... Be6 {[%clk 0:15:25.1]} 9. Bxe6 {[%clk 0:15:24.1]} 9...
fxe6 {[%clk 0:15:30]} 10. c3 {[%clk 0:15:27.1]} 10... a5 {[%clk 0:15:32]} 11.
Ng3 {[%clk 0:15:30.6]} 11... Ng4 {[%clk 0:15:05]} 12. d4 {[%clk 0:15:21.4]}
12... exd4 {[%clk 0:15:05.7]} 13. cxd4 {[%clk 0:15:25.6]} 13... Nxd4 {[%clk
0:14:58]} 14. Nxd4 {[%clk 0:15:26.4]} 14... Qf6 {[%clk 0:14:24.5]} 15. Be3
{[%clk 0:14:30.5]} 15... Nxe3 {[%clk 0:14:27.1]} 16. fxe3 {[%clk 0:14:25.2]}
16... Qf2+ {[%clk 0:13:51.6]} 17. Kh1 {[%clk 0:14:27.5]} 17... Qxb2 {[%clk
0:13:32.5]} 18. Nxe6 {[%clk 0:14:25.8]} 18... Rf2 {[%clk 0:13:28.8]} 19. Nxc5
{[%clk 0:13:52.5]} 19... Rxg2 {[%clk 0:13:26.2]} 20. Qb3+ {[%clk 0:13:53.9]}
20... Qxb3 {[%clk 0:13:24.1]} 21. Nxb3 {[%clk 0:13:57.9]} 1-0

[Event "Live Chess"]
[Site "Chess.com"]
[Date "2023.09.16"]
[Round "-"]
[White "Ilisunesp"]
[Black "advRafael"]
[Result "1-0"]
[WhiteElo "1550"]
[BlackElo "1686"]
[TimeControl "900+5"]
[EndTime "16:28:26 PDT"]
[Termination "Ilisunesp venceu por desistência"]

1. e4 {[%clk 0:15:03.3]} 1... e6 {[%clk 0:15:01.3]} 2. Nf3 {[%clk 0:15:07.3]}
2... d5 {[%clk 0:15:04.5]} 3. exd5 {[%clk 0:15:11.1]} 3... exd5 {[%clk 0:15:08]}
4. d4 {[%clk 0:15:15.4]} 4... Nf6 {[%clk 0:15:11.4]} 5. Bd3 {[%clk 0:15:19.3]}
5... Bd6 {[%clk 0:15:14.1]} 6. Be3 {[%clk 0:15:20.3]} 6... O-O {[%clk
0:15:16.2]} 7. Nbd2 {[%clk 0:15:24.3]} 7... Bg4 {[%clk 0:15:17.9]} 8. h3 {[%clk
0:15:28.5]} 8... Bh5 {[%clk 0:15:20.3]} 9. Rg1 {[%clk 0:15:17.1]} 9... Bh2
{[%clk 0:15:10.7]} 10. g4 {[%clk 0:14:55.9]} 10... Bxg1 {[%clk 0:15:11.1]} 11.
gxh5 {[%clk 0:14:59]} 11... Bxf2+ {[%clk 0:15:11.9]} 12. Kxf2 {[%clk 0:15:02.2]}
12... Nxh5 {[%clk 0:15:07.9]} 13. Qg1 {[%clk 0:14:57.1]} 13... g6 {[%clk
0:14:58.9]} 14. Ne5 {[%clk 0:14:04.8]} 14... Qf6+ {[%clk 0:14:33.7]} 15. Ke2
{[%clk 0:13:51.2]} 15... Nf4+ {[%clk 0:14:07.1]} 16. Bxf4 {[%clk 0:13:52.6]}
16... Qxf4 {[%clk 0:14:08.6]} 17. Rf1 {[%clk 0:13:49.6]} 17... Qh6 {[%clk
0:13:45.8]} 18. Qg2 {[%clk 0:13:26.7]} 18... Nc6 {[%clk 0:13:40.7]} 19. Nxc6
{[%clk 0:11:02.6]} 19... bxc6 {[%clk 0:13:40.4]} 20. Kd1 {[%clk 0:10:43.8]}
20... Rab8 {[%clk 0:13:39.4]} 21. b3 {[%clk 0:10:47.2]} 21... Qh4 {[%clk
0:12:31.9]} 22. Nf3 {[%clk 0:10:49.9]} 22... Qe7 {[%clk 0:12:29.7]} 23. Ne5
{[%clk 0:10:16.8]} 23... Qd6 {[%clk 0:12:07.2]} 24. h4 {[%clk 0:10:02.3]} 24...
Rbe8 {[%clk 0:11:36.7]} 25. Ng4 {[%clk 0:09:20]} 25... Kg7 {[%clk 0:11:24.9]}
26. h5 {[%clk 0:09:18.2]} 26... f5 {[%clk 0:10:40.8]} 27. Ne5 {[%clk 0:08:48.2]}
27... Rxe5 {[%clk 0:10:23.2]} 28. dxe5 {[%clk 0:08:51.2]} 28... Qxe5 {[%clk
0:10:25.6]} 29. Re1 {[%clk 0:07:55.3]} 29... Qf6 {[%clk 0:09:52.9]} 30. Rh1
{[%clk 0:07:36]} 30... Re8 {[%clk 0:09:25.5]} 31. hxg6 {[%clk 0:07:18.4]} 31...
hxg6 {[%clk 0:09:26.7]} 32. Qh3 {[%clk 0:07:04.3]} 32... Kf7 {[%clk 0:09:23.9]}
33. Qh7+ {[%clk 0:07:04.1]} 33... Qg7 {[%clk 0:09:27.3]} 34. Kd2 {[%clk
0:06:54.8]} 34... c5 {[%clk 0:08:39.5]} 35. Bxf5 {[%clk 0:03:34.2]} 35... gxf5
{[%clk 0:07:34]} 36. Qxf5+ {[%clk 0:03:36.5]} 36... Kg8 {[%clk 0:07:28.8]} 37.
Qxd5+ {[%clk 0:03:31.4]} 37... Qf7 {[%clk 0:07:22.1]} 38. Rh8+ {[%clk
0:03:17.2]} 1-0

[Event "Live Chess"]
[Site "Chess.com"]
[Date "2023.09.16"]
[Round "-"]
[White "ThiagoFantim"]
[Black "isiskrakatoa"]
[Result "1-0"]
[WhiteElo "1665"]
[BlackElo "586"]
[TimeControl "900+5"]
[EndTime "16:28:56 PDT"]
[Termination "ThiagoFantim venceu por xeque-mate"]

1. e4 {[%clk 0:15:02.2]} 1... e5 {[%clk 0:15:03.3]} 2. f4 {[%clk 0:15:05.9]}
2... Nc6 {[%clk 0:14:46.3]} 3. Nf3 {[%clk 0:15:09.3]} 3... exf4 {[%clk
0:14:48.6]} 4. d3 {[%clk 0:15:12.6]} 4... d5 {[%clk 0:14:47.6]} 5. Bxf4 {[%clk
0:15:14.7]} 5... dxe4 {[%clk 0:14:50.8]} 6. dxe4 {[%clk 0:15:19.6]} 6... Qxd1+
{[%clk 0:14:54]} 7. Kxd1 {[%clk 0:15:24.5]} 7... Bg4 {[%clk 0:14:55.3]} 8. Bxc7
{[%clk 0:15:25.8]} 8... Bxf3+ {[%clk 0:14:57.1]} 9. gxf3 {[%clk 0:15:29.4]} 9...
Rc8 {[%clk 0:14:45.7]} 10. Bg3 {[%clk 0:15:30.2]} 10... Rd8+ {[%clk 0:14:47.6]}
11. Ke1 {[%clk 0:15:26.9]} 11... Nd4 {[%clk 0:14:46.8]} 12. Kd2 {[%clk
0:14:59.5]} 12... Nxf3+ {[%clk 0:14:48.7]} 13. Kc3 {[%clk 0:15:00.3]} 13... Nd4
{[%clk 0:14:47.9]} 14. Na3 {[%clk 0:15:00.9]} 14... Bxa3 {[%clk 0:14:43.4]} 15.
bxa3 {[%clk 0:15:04.5]} 15... Nf6 {[%clk 0:14:42.7]} 16. Rd1 {[%clk 0:15:04.9]}
16... Nxe4+ {[%clk 0:14:44.9]} 17. Kc4 {[%clk 0:15:04.9]} 17... Nxg3 {[%clk
0:14:39.8]} 18. hxg3 {[%clk 0:15:08.1]} 18... O-O {[%clk 0:14:40.7]} 19. Rxd4
{[%clk 0:15:11.6]} 19... Rc8+ {[%clk 0:14:39.9]} 20. Kd3 {[%clk 0:15:14.7]}
20... g6 {[%clk 0:14:35.5]} 21. Bg2 {[%clk 0:15:18.1]} 21... a5 {[%clk
0:13:50.5]} 22. Bxb7 {[%clk 0:15:03.7]} 22... Rc7 {[%clk 0:13:46.3]} 23. Bd5
{[%clk 0:15:06.2]} 23... Rd8 {[%clk 0:13:44.6]} 24. Bc4 {[%clk 0:15:07.3]} 24...
Rcd7 {[%clk 0:13:48.2]} 25. Rxd7 {[%clk 0:15:10]} 25... Rxd7+ {[%clk 0:13:51.1]}
26. Kc3 {[%clk 0:15:13.6]} 26... Rc7 {[%clk 0:13:46.6]} 27. Re1 {[%clk
0:15:15.7]} 27... Kg7 {[%clk 0:13:48.4]} 28. Rf1 {[%clk 0:15:14.8]} 28... h5
{[%clk 0:13:50]} 29. Kd4 {[%clk 0:15:18.7]} 29... Rd7+ {[%clk 0:13:51.6]} 30.
Kc5 {[%clk 0:15:22]} 30... Rc7+ {[%clk 0:13:48.5]} 31. Kb5 {[%clk 0:15:25.5]}
31... Re7 {[%clk 0:13:47.9]} 32. Bxf7 {[%clk 0:15:27.6]} 32... Rxf7 {[%clk
0:13:51.3]} 33. Rxf7+ {[%clk 0:15:30.8]} 33... Kxf7 {[%clk 0:13:55]} 34. c4
{[%clk 0:15:35]} 34... h4 {[%clk 0:13:56.4]} 35. gxh4 {[%clk 0:15:38.7]} 35...
Ke7 {[%clk 0:13:55]} 36. Kb6 {[%clk 0:15:42.5]} 36... Kd7 {[%clk 0:13:59.4]} 37.
c5 {[%clk 0:15:43.7]} 37... Kc8 {[%clk 0:14:03]} 38. Kc6 {[%clk 0:15:47.9]}
38... a4 {[%clk 0:14:01.6]} 39. Kd6 {[%clk 0:15:51.9]} 39... g5 {[%clk
0:13:56.6]} 40. hxg5 {[%clk 0:15:55.6]} 40... Kb7 {[%clk 0:13:59.3]} 41. g6
{[%clk 0:15:59.9]} 41... Ka6 {[%clk 0:14:02.6]} 42. g7 {[%clk 0:16:04.2]} 42...
Kb5 {[%clk 0:14:07]} 43. g8=Q {[%clk 0:16:08.3]} 43... Ka5 {[%clk 0:14:09.8]}
44. Kc6 {[%clk 0:16:08.8]} 44... Ka6 {[%clk 0:14:12.6]} 45. Qa8# {[%clk
0:16:12.7]} 1-0